bitfinex/quotes_ETHUSD_20240925
["timestamp","ask_amount","ask_price","bid_price","bid_amount"]
[1727287804636,1.59674764,2585.7,2585.5,3.86764]
[1727287804637,0.8301,2585.7,2585.5,3.86764]
[1727287804840,0.44359571,2585.7,2585.6,3.86757]
[1727287805134,2.36684764,2586.0,2585.6,3.86757]
[1727287805625,2.36684764,2586.0,2585.7,3.86741]
[1727287805795,2.36684764,2586.0,2585.6,3.86757]
[1727287806130,2.36684764,2586.0,2585.7,3.86739]
[1727287806131,1.17359571,2585.9,2585.7,3.86739]
[1727287806625,1.17359571,2585.9,2585.6,3.86757]
[1727287806924,1.17359571,2585.9,2585.6,3.86754]
[1727287807130,1.17359571,2585.9,2585.5,3.86772]
[1727287807631,3.65244581,2585.6,2585.2,7.73617]
[1727287807931,0.09670811,2585.5,2585.2,3.86807]
[1727287808720,0.7701,2585.7,2585.3,3.86802]
[1727287809034,0.88710434,2585.6,2585.3,3.86802]
[1727287810433,0.88710434,2585.6,2585.2,3.86809]
[1727287810940,0.88710434,2585.6,2585.1,3.86831]
[1727287810941,0.7701,2585.5,2585.1,3.86819]
[1727287811222,0.91772401,2585.4,2585.1,3.86819]
[1727287811890,0.7701,2585.5,2585.1,3.86819]
[1727287813203,0.7701,2585.5,2585.1,7.73643]
[1727287813841,0.7701,2585.5,2585.3,3.86797]
[1727287814123,0.7701,2585.5,2585.3,3.86799]
[1727287814336,0.7701,2585.5,2585.2,3.86808]
[1727287814520,0.7701,2585.5,2585.4,3.86787]
[1727287814900,0.7701,2585.7,2585.4,3.86787]
[1727287815106,1.21492876,2585.7,2585.4,3.86787]
[1727287815300,1.21492876,2585.7,2585.3,3.86801]
[1727287815503,1.21492876,2585.7,2585.3,3.86795]
[1727287816728,3.86759,2585.6,2585.2,3.86815]
[1727287816932,3.65244581,2585.4,2584.9,3.8685]
[1727287817131,0.83403058,2585.3,2585.2,3.86817]
[1727287817350,0.82,2585.5,2585.2,3.8681]
[1727287817566,1.19652876,2585.7,2585.4,3.86777]
[1727287818739,1.19652876,2585.7,2585.4,7.73553]
[1727287818946,1.19652876,2585.7,2585.4,3.86776]
[1727287819770,0.10004751,2585.6,2585.4,3.86776]
[1727287821067,0.10004751,2585.6,2585.3,3.86792]
[1727287821232,0.10004751,2585.6,2585.4,3.86779]
[1727287821642,0.10004751,2585.6,2585.5,3.86772]
[1727287821847,0.7648,2586.0,2585.5,0.852421]
[1727287822045,0.7648,2586.0,2585.7,3.86732]
[1727287822231,0.10004751,2585.9,2585.7,3.86732]
[1727287822433,0.10004751,2585.9,2585.8,3.86727]
[1727287824661,0.10004751,2585.9,2585.6,3.86757]
[1727287824889,0.57322526,2585.9,2585.5,3.86769]
[1727287825031,0.10004751,2585.9,2585.5,3.86762]
[1727287825882,0.10004751,2585.9,2585.5,7.73523]
[1727287826370,0.10004751,2585.9,2585.6,3.86756]
[1727287826741,0.10004751,2585.9,2585.7,3.86738]
[1727287827181,0.10004751,2585.9,2585.8,3.86727]
[1727287827856,0.7985,2586.2,2585.8,3.86727]
[1727287828060,0.10024016,2586.1,2586.0,3.86696]
[1727287828438,0.0053014,2586.3,2586.0,4.68696]
[1727287828640,0.0053014,2586.3,2586.2,3.86667]
[1727287831042,0.0053014,2586.3,2586.1,3.8668]
[1727287831267,0.0053014,2586.3,2586.1,3.86673]
[1727287831692,0.0053014,2586.3,2586.0,0.82]
[1727287831979,0.8173,2586.0,2585.5,3.86763]
[1727287832145,8.33671581,2586.0,2585.5,7.73528]
[1727287832351,3.86723,2585.9,2585.3,8.51611]
[1727287832563,0.5553014,2586.3,2585.3,3.86789]
[1727287832564,0.8173,2585.7,2585.3,3.86789]
[1727287832760,3.74914923,2585.6,2585.3,3.86789]
[1727287832936,3.74914923,2585.6,2585.2,3.86816]
[1727287833362,3.74914923,2585.6,2585.1,3.8682]
[1727287833569,3.65244581,2585.6,2585.2,3.86812]
[1727287833787,0.09670638,2585.5,2585.3,3.86802]
[1727287833987,4.48504581,2585.4,2585.0,0.505]
[1727287834153,3.96451601,2585.5,2585.0,0.505]
[1727287834154,0.8326,2585.1,2585.0,0.505]
[1727287834860,0.97229476,2585.1,2584.9,0.505]
[1727287835242,0.13969476,2585.1,2585.0,3.86847]
[1727287835444,0.13969476,2585.1,2584.9,4.37354]
[1727287835445,0.8326,2585.3,2584.9,4.37354]
[1727287835782,0.13969476,2585.2,2585.0,3.86846]
[1727287836074,0.8326,2585.3,2585.0,3.86846]
[1727287836375,0.13969476,2585.2,2584.9,4.37354]
[1727287836547,0.8326,2585.3,2584.9,4.37352]
[1727287836749,0.13969476,2585.1,2584.9,4.37352]
[1727287836981,0.8326,2585.3,2584.9,8.24205]
[1727287837466,0.13969476,2585.2,2584.9,4.37352]
[1727287837662,0.8326,2585.3,2585.0,3.86835]
[1727287837835,0.13969476,2585.2,2585.0,3.86835]
[1727287838040,0.8326,2585.3,2584.9,4.37352]
[1727287838337,0.13969476,2585.2,2584.9,4.37352]
[1727287838587,0.13969476,2585.2,2584.9,8.24205]
[1727287838766,1.35673933,2585.3,2585.0,3.86838]
[1727287839085,0.8326,2585.3,2585.0,3.86838]
[1727287839290,0.13969476,2585.2,2585.0,3.86838]
[1727287839459,0.8326,2585.3,2585.0,3.86838]
[1727287839656,0.13969476,2585.2,2585.0,3.86838]
[1727287839857,0.8326,2585.3,2584.9,8.24204]
[1727287840046,0.13969476,2585.2,2584.9,4.37352]
[1727287840387,0.8326,2585.3,2585.0,3.86846]
[1727287840588,0.13969476,2585.1,2584.9,4.37352]
[1727287840743,0.8326,2585.3,2585.0,3.86846]
[1727287840952,8.1365,2585.8,2585.4,3.86775]
[1727287841388,8.1365,2585.8,2585.3,3.868]
[1727287842000,8.1365,2585.8,2585.4,3.86786]
[1727287842596,0.7765,2585.8,2585.4,3.86786]
[1727287842812,0.7765,2586.1,2585.7,3.8674]
[1727287844260,0.7765,2586.1,2585.6,3.86746]
[1727287844261,0.7765,2586.1,2585.8,3.86726]
[1727287844461,12.0084114,2586.3,2585.8,3.86726]
[1727287844660,4.6484114,2586.3,2585.8,3.86726]
[1727287844864,0.46484114,2586.2,2585.8,3.86726]
[1727287845248,0.46484114,2586.2,2585.8,7.73444]
[1727287845472,4.6484114,2586.3,2585.8,3.86718]
[1727287846392,0.7818014,2586.3,2585.9,3.86707]
[1727287847499,0.7818014,2586.3,2585.8,3.86718]
[1727287847702,4.6483614,2586.3,2585.8,3.86718]
[1727287848059,4.6483614,2586.3,2585.7,3.86739]
[1727287848060,3.86676,2586.2,2585.7,3.86739]
[1727287848261,4.6483414,2586.3,2585.8,3.86725]
[1727287848676,4.6483414,2586.3,2585.7,0.5007256]
[1727287848677,0.7818014,2586.3,2586.0,3.86697]
[1727287848875,0.7818014,2586.3,2586.1,3.86682]
[1727287848876,0.0053014,2586.3,2586.1,3.86682]
[1727287849065,0.0053014,2586.3,2586.2,3.86667]
[1727287849666,0.14468965,2586.3,2586.2,3.86667]
[1727287849905,0.14468965,2586.3,2586.0,4.62867]
[1727287850105,0.14468965,2586.3,2586.1,3.86681]
[1727287850378,0.14468965,2586.3,2586.2,3.86667]
[1727287852130,0.14468965,2586.3,2586.2,4.62847]
[1727287856333,0.0053014,2586.3,2586.2,4.62847]
[1727287856819,0.14525862,2586.3,2586.2,4.62847]
[1727287857022,0.0053014,2586.3,2586.2,5.5629548]
[1727287857228,0.14525862,2586.3,2586.2,5.5629548]
[1727287857398,0.0053014,2586.3,2586.2,5.5629548]
[1727287857584,0.14525862,2586.3,2586.2,5.5629548]
[1727287859711,0.14525862,2586.3,2586.2,9.21540061]
[1727287859913,0.0053014,2586.3,2586.2,12.21540061]
[1727287863457,0.56136027,2586.8,2586.7,4.68302]
[1727287863778,0.56136027,2586.8,2586.7,7.68302]
[1727287867696,0.56136027,2586.8,2586.7,3.86592]
[1727287868002,0.70131749,2586.8,2586.7,3.86592]
[1727287868293,0.70131749,2586.8,2586.7,4.62822]
[1727287868498,0.56136027,2586.8,2586.7,5.84289158]
[1727287868861,0.56136027,2586.8,2586.7,8.91959121]
[1727287869061,0.0371716,2587.1,2587.0,3.86548]
[1727287869293,0.0371716,2587.1,2587.0,11.39940773]
[1727287869601,0.0371716,2587.1,2587.0,13.14922758]
[1727287875172,0.0371716,2587.1,2587.0,16.80167339]
[1727287875412,0.0371716,2587.8,2587.7,3.86443]
[1727287876217,0.0371716,2587.8,2587.7,7.51687581]
[1727287876772,0.0371716,2587.8,2587.7,8.27017581]
[1727287877104,0.0371716,2587.8,2587.7,12.48364939]
[1727287878172,0.0371716,2587.8,2587.7,13.03364939]
[1727287880687,0.0371716,2587.8,2587.7,12.48364939]
[1727287882393,0.0371716,2587.8,2587.7,8.07790358]
[1727287882614,0.0371716,2587.8,2587.7,1.21347358]
[1727287882790,0.18220989,2587.8,2587.5,3.86471]
[1727287883000,0.52094959,2587.8,2587.4,3.86478]
[1727287883224,0.93647715,2587.7,2587.4,3.86478]
[1727287883385,0.93647715,2587.7,2587.2,3.86508]
[1727287883386,0.93647715,2587.7,2587.3,3.865]
[1727287883587,0.93647715,2587.7,2587.2,3.86508]
[1727287883588,4.89753549,2587.7,2587.2,3.86508]
[1727287883795,0.7915,2587.6,2587.3,3.865]
[1727287884001,0.7915,2587.6,2587.3,3.8649]
[1727287884234,0.7915,2587.6,2587.5,3.86473]
[1727287884652,0.8521716,2587.8,2587.7,3.86443]
[1727287886413,0.8521716,2587.8,2587.5,3.86462]
[1727287886727,0.8521716,2587.8,2587.2,3.86506]
[1727287886728,0.8155,2587.7,2587.2,3.86506]
[1727287886940,0.8155,2587.7,2587.2,3.8651]
[1727287887229,4.67994,2587.7,2587.2,3.8651]
[1727287887403,3.86444,2587.7,2587.2,3.8651]
[1727287887606,4.68015,2587.6,2587.0,4.37037]
[1727287887794,5.00648374,2587.6,2587.0,4.37037]
[1727287887995,0.8155,2587.5,2587.1,3.86522]
[1727287888222,0.8155,2587.5,2587.2,3.86516]
[1727287888424,0.8155,2587.5,2587.1,3.86528]
[1727287888637,1.39768037,2587.5,2587.1,3.86528]
[1727287888997,7.36,2588.0,2587.1,3.86528]
[1727287888998,7.36,2588.0,2587.2,3.86514]
[1727287889201,4.20244581,2587.9,2587.2,3.86514]
[1727287889396,1.15624458,2587.8,2587.2,3.86514]
[1727287889908,1.15624458,2587.8,2587.1,3.86528]
[1727287890146,3.86452,2587.7,2587.1,3.86528]
[1727287890335,3.8653,2587.2,2587.0,0.505]
[1727287890499,7.76455039,2587.1,2586.6,3.86605]
[1727287890697,3.86518,2587.2,2586.6,3.86605]
[1727287890904,3.74909797,2587.1,2586.4,3.86627]
[1727287891132,3.86549,2587.0,2586.4,3.86627]
[1727287891625,0.0966545,2586.9,2586.4,3.86627]
[1727287891902,0.7839,2586.8,2586.4,3.86627]
[1727287892220,0.7839,2586.8,2586.4,7.73256]
[1727287892433,0.7839,2586.8,2586.4,3.86627]
[1727287892629,4.64968,2586.8,2586.3,3.86652]
[1727287892936,0.7839,2586.8,2586.6,3.86597]
[1727287893112,0.7839,2586.8,2586.7,3.86592]
[1727287893824,0.7979,2587.3,2586.9,3.86555]
[1727287894334,0.7979,2587.3,2586.7,3.86584]
[1727287894698,0.7979,2587.3,2586.9,3.86559]
[1727287895041,0.14250365,2587.2,2586.9,3.86559]
[1727287895212,0.7979,2587.3,2586.9,3.86559]
[1727287895395,0.14250365,2587.1,2586.9,3.86559]
[1727287895625,0.7979,2587.3,2586.7,3.86584]
[1727287895824,0.14250365,2587.0,2586.7,3.86584]
[1727287896063,2.000178,2587.3,2586.8,3.86574]
[1727287896283,0.14250365,2586.9,2586.8,3.86574]
[1727287896465,0.7979,2587.3,2586.9,3.86561]
[1727287896686,0.7979,2587.3,2587.0,3.86538]
[1727287897038,0.7979,2587.3,2586.9,3.86561]
[1727287897769,0.7979,2587.3,2586.7,3.86582]
[1727287897770,3.86512,2587.3,2586.7,3.86582]
[1727287897926,0.7558,2587.2,2586.8,3.86576]
[1727287898128,0.7558,2587.2,2586.7,3.86582]
[1727287898384,0.7558,2587.2,2586.8,3.86575]
[1727287898666,0.7558,2587.2,2586.7,3.86582]
[1727287899172,0.7558,2587.1,2586.7,3.86582]
[1727287899360,0.7558,2587.1,2586.3,3.86641]
[1727287899361,0.7558,2587.0,2586.3,3.86641]
[1727287899552,0.7558,2587.1,2586.1,3.0]
[1727287899772,0.7558,2587.0,2586.5,3.86612]
[1727287901077,0.7558,2587.0,2586.3,3.86642]
[1727287901364,0.7558,2586.8,2586.4,3.86637]
[1727287901569,1.217951,2586.8,2586.4,3.86637]
[1727287901869,0.7558,2586.8,2586.4,3.86637]
[1727287902277,0.643282,2586.8,2586.4,3.86637]
[1727287902442,0.643282,2586.8,2586.4,3.86628]
[1727287902776,0.09665884,2586.7,2586.3,3.86651]
[1727287902974,0.87947672,2586.7,2586.3,3.86651]
[1727287903195,0.78281788,2586.7,2586.3,3.86651]
[1727287903393,3.86581,2586.8,2586.3,3.86651]
[1727287903712,7.7317,2586.8,2586.2,3.86656]
[1727287904008,3.86581,2586.8,2586.2,3.86656]
[1727287904357,0.55,2586.9,2586.2,3.86656]
[1727287904565,4.41563,2586.9,2586.4,3.86637]
[1727287904794,5.243748,2586.9,2586.4,3.86637]
[1727287904978,0.828118,2586.9,2586.4,3.86627]
[1727287905296,0.795,2586.9,2586.4,3.86627]
[1727287905504,0.795,2586.9,2585.9,0.8266]
[1727287905659,0.795,2586.7,2586.2,3.86656]
[1727287906309,0.795,2586.7,2586.3,3.8664]
[1727287907463,0.795,2586.7,2586.4,3.86637]
[1727287908307,0.795,2586.7,2586.4,3.86629]
[1727287909676,0.14202261,2586.6,2586.4,3.86629]
[1727287910723,0.7928,2586.4,2585.9,3.86711]
[1727287910929,0.7928,2586.4,2586.1,3.86682]
[1727287911435,0.14202261,2586.3,2586.1,3.86682]
[1727287911653,0.14202261,2586.3,2586.1,3.86675]
[1727287912330,0.14202261,2586.3,2586.2,3.86667]
[1727287913224,0.14202261,2586.3,2586.2,4.35810268]
[1727287913553,0.7793,2586.7,2586.6,3.86607]
[1727287914103,0.8047,2587.0,2586.2,0.49143268]
[1727287914313,7.36,2587.3,2586.9,3.86563]
[1727287914533,0.7742,2587.3,2586.8,3.86568]
[1727287914763,4.63924,2587.3,2586.8,3.86568]
[1727287915944,0.7742,2587.3,2586.9,3.86563]
[1727287916456,0.7742,2587.3,2586.9,3.86562]
[1727287916830,0.7742,2587.3,2587.0,3.86547]
[1727287917030,0.7742,2587.3,2587.0,3.86539]
[1727287917234,0.7742,2587.3,2587.0,4.251929]
[1727287917624,0.7742,2587.3,2587.0,8.117329]
[1727287917840,0.7742,2587.3,2587.0,4.251929]
[1727287918327,0.7742,2587.3,2587.0,3.86539]
[1727287919156,0.7742,2587.3,2587.0,7.73078]
[1727287919464,0.7742,2587.3,2587.0,3.86539]
[1727287920266,4.63926,2587.3,2586.8,3.86565]
[1727287920433,4.329216,2587.2,2586.6,7.73197]
[1727287920763,3.86571,2586.9,2586.4,3.8663]
[1727287920963,3.86571,2586.9,2586.4,3.86629]
[1727287920964,3.86566,2586.9,2586.4,3.86629]
[1727287921146,4.61678,2587.0,2586.5,3.86619]
[1727287921353,4.69168499,2586.9,2586.4,3.86629]
[1727287921519,0.82602499,2586.9,2586.5,3.8662]
[1727287922037,4.69166499,2586.9,2586.4,3.86629]
[1727287922371,0.8206,2586.7,2586.2,3.86657]
[1727287922661,4.68669,2586.6,2586.2,3.86657]
[1727287922963,0.8206,2586.6,2586.2,3.86657]
[1727287924160,0.8206,2586.6,2586.2,7.73315]
[1727287924358,0.8206,2586.6,2586.2,3.86657]
[1727287924763,0.14221505,2586.5,2586.2,3.86657]
[1727287925131,0.62509456,2586.5,2585.9,3.86706]
[1727287925323,0.14221505,2586.5,2586.2,3.86654]
[1727287926064,0.14221505,2586.5,2586.0,3.86684]
[1727287926227,0.14221505,2586.5,2586.1,3.86673]
[1727287926430,0.14221505,2586.5,2586.2,3.86661]
[1727287926658,0.14221505,2586.5,2586.1,3.86673]
[1727287926841,0.14221505,2586.5,2586.4,3.86637]
[1727287927045,0.7897,2586.9,2586.3,3.8665]
[1727287927373,0.7897,2586.9,2585.9,0.7827]
[1727287927374,0.7897,2586.9,2586.6,3.866]
[1727287927661,0.7897,2586.9,2586.6,7.73196]
[1727287927837,0.7897,2586.9,2586.5,3.86619]
[1727287928229,0.7897,2586.9,2586.6,3.86606]
[1727287928425,0.7897,2586.9,2586.7,3.86591]
[1727287928626,1.25654508,2587.2,2586.8,3.86578]
[1727287929786,0.7939,2587.2,2586.9,3.86555]
[1727287930083,0.7939,2587.2,2586.6,3.86599]
[1727287930294,5.24021752,2587.5,2586.5,3.86615]
[1727287930295,0.7939,2586.9,2586.5,3.86615]
[1727287930476,0.7939,2586.9,2586.4,3.86632]
[1727287930477,8.30311988,2586.9,2586.4,3.86632]
[1727287930698,3.86594,2586.7,2586.2,3.86665]
[1727287930858,0.7939,2586.5,2586.3,3.86642]
[1727287931269,0.7873,2586.8,2586.4,3.86637]
[1727287933292,0.7873,2586.8,2586.5,3.8662]
[1727287933653,0.7873,2586.8,2586.4,3.86636]
[1727287934979,0.7873,2586.8,2586.5,3.86619]
[1727287935585,0.7873,2586.8,2586.6,3.86594]
[1727287935798,3.86606,2586.7,2586.2,3.8666]
[1727287935966,5.08232699,2586.7,2586.2,3.86658]
[1727287936562,3.86623,2586.5,2586.0,3.86687]
[1727287936970,3.86623,2586.5,2586.0,7.73375]
[1727287937571,3.86623,2586.5,2586.0,3.86687]
[1727287937796,5.36073245,2586.5,2586.0,3.86687]
[1727287937970,3.86652,2586.3,2585.9,3.86711]
[1727287939776,0.14160271,2586.2,2585.9,3.86711]
[1727287940191,3.96323437,2586.3,2585.8,3.86718]
[1727287940395,0.7561,2586.0,2585.7,3.86739]
[1727287940567,0.09668259,2585.9,2585.7,3.86739]
[1727287940763,0.14081524,2585.9,2585.7,3.86739]
[1727287941965,0.14081524,2585.9,2585.8,3.86727]
[1727287942166,0.14081524,2585.9,2585.7,7.73473]
[1727287942384,0.14081524,2585.9,2585.7,3.86734]
[1727287943197,0.14081524,2585.9,2585.7,7.73468]
[1727287943405,0.14081524,2585.9,2585.7,3.86734]
[1727287945417,0.14081524,2585.9,2585.6,3.86756]
[1727287945642,0.14081524,2585.9,2585.5,0.0371716]
[1727287945643,3.86728,2585.8,2585.5,0.0371716]
[1727287945823,0.7817,2585.7,2585.5,0.0371716]
[1727287945988,0.7817,2586.0,2585.6,3.86757]
[1727287946320,0.14081524,2585.9,2585.6,3.86757]
[1727287946818,0.14081524,2585.9,2585.6,4.66517]
[1727287947112,0.14081524,2585.9,2585.7,3.86742]
[1727287947320,0.14081524,2585.9,2585.6,8.53262]
[1727287947686,0.14081524,2585.9,2585.7,3.86735]
[1727287948399,0.14081524,2585.9,2585.8,3.86727]
[1727287948583,0.14081524,2585.9,2585.7,4.72436716]
[1727287948917,0.14081524,2585.9,2585.7,0.85695716]
[1727287949076,0.14081524,2585.9,2585.7,4.72437716]
[1727287949815,0.14081524,2585.9,2585.7,3.86742]
[1727287950120,3.86736,2585.8,2585.5,0.0371716]
[1727287950275,4.64117,2585.6,2585.5,0.0371716]
[1727287950477,0.7736,2585.6,2585.5,0.0371716]
[1727287950910,0.91380256,2585.6,2585.5,0.0371716]
[1727287951110,0.14020256,2585.6,2585.5,0.0371716]
[1727287951412,0.14020256,2585.6,2585.5,4.6846916]
[1727287951576,0.14020256,2585.6,2585.5,5.53994576]
[1727287951908,4.64059,2586.0,2585.6,3.86756]
[1727287952423,4.64059,2586.0,2585.5,1.67222576]
[1727287952781,0.7736,2586.0,2585.6,3.86755]
[1727287952987,0.7736,2586.0,2585.7,3.86739]
[1727287953288,4.64888,2586.2,2585.7,3.86739]
[1727287953833,4.42556988,2586.2,2585.5,3.9048716]
[1727287954002,3.86704,2586.0,2585.5,3.9048716]
[1727287954698,0.14006249,2585.9,2585.5,3.9048716]
[1727287954892,0.14006249,2585.9,2585.5,4.75750276]
[1727287955109,0.14006249,2585.9,2585.5,0.0371716]
[1727287955110,4.00720249,2585.9,2585.5,0.0371716]
[1727287955320,0.7821,2585.8,2585.5,0.0371716]
[1727287955689,0.14006249,2585.7,2585.5,3.9048616]
[1727287955892,0.7821,2585.8,2585.5,3.9048616]
[1727287956211,0.14006249,2585.6,2585.5,3.9048916]
[1727287956522,0.14006249,2585.6,2585.5,0.0371716]
[1727287956731,0.7821,2585.8,2585.5,0.0371716]
[1727287956887,0.14016755,2585.6,2585.5,3.9048816]
[1727287957087,0.7821,2585.8,2585.5,3.9048816]
[1727287957385,0.14016755,2585.6,2585.5,3.9048816]
[1727287957589,0.7821,2585.8,2585.6,3.86757]
[1727287958211,0.7821,2585.8,2585.5,0.0371716]
[1727287958411,0.7821,2585.8,2585.5,3.9048816]
[1727287959396,0.814,2586.2,2585.7,3.86735]
[1727287959629,0.814,2586.2,2585.9,3.86704]
[1727287959794,0.814,2586.2,2585.8,3.86727]
[1727287961313,0.814,2586.2,2585.7,3.86733]
[1727287961513,0.814,2586.2,2585.7,7.73467]
[1727287961841,0.814,2586.2,2585.7,8.58879416]
[1727287962035,0.814,2586.2,2585.8,3.86719]
[1727287962636,0.814,2586.2,2585.9,3.86708]
[1727287962847,1.59674764,2586.7,2586.1,0.8246]
[1727287963013,9.38130184,2586.8,2586.6,3.64346988]
[1727287963014,0.8117,2586.8,2586.6,3.64346988]
[1727287963838,0.8117,2586.8,2586.1,3.86677]
[1727287964134,0.8117,2586.8,2586.0,7.51037988]
[1727287964135,0.8117,2586.8,2586.2,3.86662]
[1727287964319,1.05254476,2586.8,2586.2,3.64346988]
[1727287964636,1.05254476,2586.8,2586.2,7.51010988]
[1727287965342,0.8117,2586.8,2586.4,3.64346988]
[1727287965633,0.8117,2586.8,2586.5,3.86613]
[1727287966513,0.8258,2587.0,2586.6,3.64346988]
[1727287967610,0.8258,2587.0,2586.4,7.50983988]
[1727287967812,1.80405476,2587.0,2586.4,7.50983988]
[1727287968012,1.80405476,2587.0,2586.5,3.86615]
[1727287968609,0.8258,2587.0,2586.5,3.86615]
[1727287969836,0.14040386,2586.9,2586.5,3.86615]
[1727287970617,0.7909,2586.8,2585.7,0.802]
[1727287970910,0.7909,2586.6,2586.0,3.8669]
[1727287971108,1.02966476,2586.6,2586.0,3.8669]
[1727287971509,0.14101649,2586.5,2586.0,3.8669]
[1727287971755,0.14101649,2586.5,2585.8,7.51062988]
[1727287971917,0.14101649,2586.5,2586.0,3.86696]
[1727287972114,0.14101649,2586.5,2586.1,3.86679]
[1727287972458,0.14101649,2586.5,2586.0,7.51036988]
[1727287973116,0.14101649,2586.5,2586.0,11.37721988]
[1727287973424,0.14101649,2586.5,2586.1,3.86679]
[1727287973625,0.14101649,2586.5,2586.0,11.37723988]
[1727287973845,0.14101649,2586.5,2586.0,7.51033988]
[1727287974051,0.14101649,2586.5,2586.1,3.8668]
[1727287975041,0.14101649,2586.5,2586.4,8.26793988]
[1727287975359,0.7805,2587.1,2586.6,3.86596]
[1727287975564,0.7805,2587.1,2586.8,3.86577]
[1727287975759,0.7805,2587.1,2586.7,3.64346988]
[1727287976457,0.7805,2587.1,2586.7,7.50938988]
[1727287976756,0.7805,2587.1,2586.4,3.86626]
[1727287977133,0.7805,2587.1,2586.2,0.7581]
[1727287977134,0.7805,2587.1,2586.6,3.86607]
[1727287977480,0.7805,2587.1,2586.7,3.64346988]
[1727287979375,0.7805,2587.1,2586.6,3.86597]
[1727287979864,0.7805,2587.1,2586.5,7.50967988]
[1727287980165,0.7805,2587.1,2586.6,3.86602]
[1727287980724,0.7805,2587.1,2586.1,3.0]
[1727287981079,0.7945,2586.8,2585.8,0.7852]
[1727287981258,0.7945,2586.8,2585.7,3.86733]
[1727287981259,0.7506,2586.6,2585.7,3.86733]
[1727287981565,0.7506,2586.4,2585.7,3.86733]
[1727287981863,0.09667448,2586.3,2585.7,3.86733]
[1727287982168,2.02358262,2586.7,2585.5,3.9048516]
[1727287982169,0.7506,2586.2,2585.5,3.9048516]
[1727287982479,0.7506,2586.2,2585.7,3.86734]
[1727287986329,0.14023757,2586.1,2585.7,3.86734]
[1727287986729,0.14023757,2586.1,2585.6,7.51099988]
[1727287987330,0.14023757,2586.1,2585.7,3.86736]
[1727287988636,0.14023757,2586.1,2585.8,7.51065988]
[1727287989743,0.14023757,2586.1,2585.7,3.86734]
[1727287989971,0.14023757,2586.1,2585.8,3.86722]
[1727287990488,0.14023757,2586.1,2585.7,3.86734]
[1727287991493,0.14023757,2586.1,2585.5,3.9048016]
[1727287992085,0.14023757,2586.1,2585.6,3.0]
[1727287993184,0.14023757,2586.1,2585.6,10.51101988]
[1727287995797,0.14023757,2586.1,2585.6,6.64346988]
[1727287995946,0.14023757,2586.1,2585.7,3.86741]
[1727287997760,0.14023757,2586.1,2585.8,3.8672]
[1727287997994,0.14023757,2586.1,2585.9,3.8671]
[1727287999257,0.14023757,2586.1,2585.8,3.64346988]
[1727287999468,0.14023757,2586.1,2585.8,3.86725]
[1727288000006,0.14023757,2586.1,2585.9,3.86701]
[1727288000372,0.14023757,2586.1,2585.8,3.64346988]
[1727288000574,0.14023757,2586.1,2585.8,7.51062988]
[1727288002009,0.14023757,2586.1,2585.9,7.73415]
[1727288002210,0.14023757,2586.1,2585.9,3.86704]
[1727288002497,0.14023757,2586.1,2585.9,3.86703]
[1727288003689,0.14023757,2586.1,2586.0,3.64346988]
[1727288003993,0.14023757,2586.1,2586.0,7.51043988]
[1727288004192,0.7613,2586.4,2586.0,7.51043988]
[1727288004369,0.14021132,2586.1,2586.0,7.51043988]
[1727288004580,0.7613,2586.4,2586.2,3.86667]
[1727288004776,0.7613,2586.4,2586.2,7.51013988]
[1727288008816,0.7613,2586.4,2586.2,7.51004988]
[1727288009120,0.7613,2586.4,2586.1,3.8668]
[1727288009815,0.831,2586.2,2585.9,3.0]
[1727288011116,0.831,2586.2,2585.9,6.86712]
[1727288011498,0.831,2586.2,2585.9,3.0]
[1727288011699,0.831,2586.2,2585.8,3.86714]
[1727288012798,0.831,2586.2,2585.8,7.73433]
[1727288013006,0.831,2586.2,2585.9,3.86712]
[1727288014709,0.14043891,2586.1,2585.9,3.86712]
[1727288014886,0.831,2586.2,2585.9,3.86712]
[1727288015083,0.831,2586.2,2586.0,3.8669]
[1727288015310,0.831,2586.2,2586.0,7.51036988]
[1727288015524,0.831,2586.2,2586.1,3.86682]
[1727288016509,0.731,2586.2,2586.1,3.86682]
[1727288017123,0.731,2586.2,2586.0,3.86696]
[1727288019335,0.731,2586.2,2586.0,3.86688]
[1727288019538,0.8317,2586.6,2586.0,8.26138487]
[1727288019771,2.85177927,2586.8,2586.4,3.64346988]
[1727288019981,0.8317,2586.8,2586.6,7.50948988]
[1727288020173,0.8317,2586.8,2586.6,3.86602]
[1727288020465,0.8317,2586.8,2586.6,3.866]
[1727288021029,0.8317,2586.8,2586.4,7.87415687]
[1727288021030,0.8317,2586.8,2586.5,3.0]
[1727288021329,2.01966763,2587.2,2586.1,3.86682]
[1727288021330,0.8154,2586.9,2586.1,3.86682]
[1727288021623,0.8154,2586.9,2586.2,3.86667]
[1727288021624,0.8154,2586.8,2586.2,3.86667]
[1727288022664,0.8154,2586.7,2586.2,3.86667]
[1727288023328,0.8154,2586.7,2586.2,7.73326]
[1727288023523,0.8154,2586.7,2586.2,3.86659]
[1727288024870,0.7779,2586.6,2586.0,3.86688]
[1727288025168,0.7779,2586.5,2586.0,7.73376]
[1727288025364,0.7779,2586.5,2586.0,3.86688]
[1727288025726,0.7779,2586.5,2586.0,7.73378]
[1727288026358,1.05800421,2586.5,2586.0,7.73378]
[1727288026658,0.8139,2586.4,2585.8,6.86718]
[1727288026845,0.8139,2586.4,2585.9,3.8671]
[1727288027252,0.8139,2586.4,2585.8,6.86718]
[1727288027431,0.8139,2586.4,2585.8,10.51060988]
[1727288027767,0.8139,2586.4,2585.8,7.73432]
[1727288027768,0.7813,2586.3,2585.8,7.73432]
[1727288028061,0.28044421,2586.2,2585.8,3.86714]
[1727288028229,0.7813,2586.3,2585.8,3.86714]
[1727288028433,0.7813,2586.3,2585.8,7.73434]
[1727288028744,0.7813,2586.3,2585.8,3.86714]
[1727288029330,0.7813,2586.3,2585.8,7.73433]
[1727288029627,2.80444207,2586.3,2585.9,3.86701]
[1727288029834,0.14043891,2586.2,2585.9,3.86701]